fUSD/lending_fUSD_20260107
["ID","MTS","AMOUNT","RATE_DAILY","PERIOD"]
[400746438,1767810622252,-3882.0,0.00014919,2]
[400746439,1767810622409,-10000.01,0.00014919,2]
[400746440,1767810622494,-1931.25,0.00014919,2]
[400746441,1767810622503,-8068.76,0.00014919,2]
[400746442,1767810622576,-10000.01,0.00014919,2]
[400746443,1767810622875,-249.00116379,0.00014919,2]
[400746444,1767810627902,-3613.49883621,0.00014919,2]
[400746466,1767810631637,-548.53445297,0.00014929,2]
[400746467,1767810631649,-476.68734053,0.00014929,2]
[400746469,1767810631660,-1100.7542825,0.00014929,2]
[400746471,1767810631671,-5874.72552576,0.00014929,2]
[400746473,1767810631682,-1501.99056459,0.00014929,2]
[400746477,1767810631704,-9353.64728583,0.00014929,2]
[400746480,1767810631723,-414.5029998,0.00014929,2]
[400746482,1767810631734,-4067.03448011,0.00014929,2]
[400746484,1767810631746,-1429.56019822,0.00014929,2]
[400746489,1767810631786,-147325.69112827,0.00014929,2]
[400746491,1767810631798,-657.85661962,0.00014929,2]
[400746493,1767810631809,-344.58,0.00014929,2]
[400746495,1767810631821,-1783.43233148,0.00014929,2]
[400746499,1767810631919,-6808.74605146,0.00014929,2]
[400746500,1767810637674,-478.37891291,0.00014929,2]
[400746501,1767810637786,-521263.89322007,0.00014929,2]
[400746502,1767810637796,-4108.7785,0.00015029,2]
[400746504,1767810637805,-53057.9087,0.00015029,2]
[400746506,1767810637816,-161.6509,0.00015068,2]
[400746508,1767810637826,-500.0,0.00015073,2]
[400746509,1767810637836,-500.0,0.00015073,2]
[400746510,1767810637847,-500.0,0.00015073,2]
[400746511,1767810637856,-500.0,0.00015073,2]
[400746513,1767810637865,-500.0,0.00015073,2]
[400746515,1767810637875,-500.0,0.00015073,2]
[400746517,1767810637884,-500.0,0.00015073,2]
[400746519,1767810637894,-500.0,0.00015073,2]
[400746521,1767810637903,-500.0,0.00015073,2]
[400746523,1767810637913,-331.79442927,0.00015073,2]
[400746525,1767810637922,-500.0,0.00015073,2]
[400746527,1767810637931,-500.0,0.00015073,2]
[400746529,1767810637940,-500.0,0.00015073,2]
[400746531,1767810637951,-311.64161933,0.00015073,2]
[400746533,1767810637960,-500.0,0.00015073,2]
[400746535,1767810637969,-500.0,0.00015073,2]
[400746537,1767810637979,-500.0,0.00015073,2]
[400746539,1767810637988,-240.62620329,0.00015075,2]
[400746541,1767810637997,-500.0,0.00015099,2]
[400746543,1767810638007,-500.0,0.00015099,2]
[400746545,1767810638015,-500.0,0.00015099,2]
[400746547,1767810638025,-500.0,0.00015099,2]
[400746550,1767810638035,-500.0,0.00015099,2]
[400746551,1767810638044,-500.0,0.00015099,2]
[400746554,1767810638054,-500.0,0.00015099,2]
[400746556,1767810638064,-500.0,0.00015099,2]
[400746557,1767810638075,-500.0,0.00015099,2]
[400746559,1767810638084,-500.0,0.00015099,2]
[400746561,1767810638093,-500.0,0.00015099,2]
[400746564,1767810638102,-500.0,0.00015099,2]
[400746566,1767810638116,-500.0,0.00015099,2]
[400746568,1767810638125,-500.0,0.00015099,2]
[400746570,1767810638134,-500.0,0.00015099,2]
[400746572,1767810638143,-500.0,0.00015099,2]
[400746574,1767810638153,-500.0,0.00015099,2]
[400746576,1767810638164,-500.0,0.00015099,2]
[400746578,1767810638173,-500.0,0.00015099,2]
[400746580,1767810638183,-500.0,0.00015099,2]
[400746582,1767810638191,-500.0,0.00015099,2]
[400746584,1767810638201,-500.0,0.00015099,2]
[400746586,1767810638211,-500.0,0.00015099,2]
[400746588,1767810638220,-500.0,0.00015099,2]
[400746590,1767810638229,-500.0,0.00015099,2]
[400746592,1767810638242,-500.0,0.00015099,2]
[400746594,1767810638252,-500.0,0.00015099,2]
[400746596,1767810638261,-500.0,0.00015099,2]
[400746598,1767810638271,-623.54476987,0.00015099,2]
[400746600,1767810638281,-500.0,0.00015099,2]
[400746602,1767810638291,-500.0,0.00015099,2]
[400746605,1767810638301,-500.0,0.00015099,2]
[400746607,1767810638313,-500.0,0.00015099,2]
[400746609,1767810638323,-500.0,0.00015099,2]
[400746610,1767810638332,-500.0,0.00015099,2]
[400746613,1767810638341,-500.0,0.00015099,2]
[400746614,1767810638350,-500.0,0.00015099,2]
[400746616,1767810638360,-500.0,0.00015099,2]
[400746618,1767810638370,-500.0,0.00015099,2]
[400746621,1767810638379,-500.0,0.00015099,2]
[400746623,1767810638389,-200.0,0.00015099,2]
[400746625,1767810638398,-500.0,0.00015099,2]
[400746626,1767810638407,-500.0,0.00015099,2]
[400746628,1767810638417,-500.0,0.00015099,2]
[400746630,1767810638426,-500.0,0.00015099,2]
[400746632,1767810638435,-300.0,0.00015099,2]
[400746634,1767810638445,-500.0,0.00015099,2]
[400746636,1767810638454,-500.0,0.00015099,2]
[400746638,1767810638463,-500.0,0.00015099,2]
[400746640,1767810638472,-500.0,0.00015099,2]
[400746642,1767810638481,-500.0,0.00015099,2]
[400746644,1767810638490,-500.0,0.00015099,2]
[400746646,1767810638500,-500.0,0.00015099,2]
[400746648,1767810638510,-500.0,0.00015099,2]
[400746650,1767810638520,-500.0,0.00015099,2]
[400746652,1767810638532,-238.07124598,0.00015099,2]
[400746654,1767810638542,-89046.78923842,0.000151,2]
[400746655,1767810638551,-195.0,0.00015115,2]
[400746657,1767810638564,-200.0,0.00015119,2]
[400746659,1767810638573,-307.8049795,0.0001512,2]
[400746661,1767810638583,-218.65304711,0.0001512,2]
[400746663,1767810638592,-500.0,0.0001512,2]
[400746665,1767810638601,-500.0,0.0001512,2]
[400746667,1767810638610,-302.59029446,0.0001512,2]
[400746669,1767810638620,-500.0,0.0001512,2]
[400746671,1767810638629,-151.0,0.0001512,2]
[400746673,1767810638639,-151.0,0.0001512,2]
[400746675,1767810638648,-151.0,0.0001512,2]
[400746677,1767810638662,-151.0,0.0001512,2]
[400746679,1767810638672,-151.0,0.0001512,2]
[400746681,1767810638682,-151.0,0.0001512,2]
[400746683,1767810638692,-151.0,0.0001512,2]
[400746685,1767810638701,-151.0,0.0001512,2]
[400746687,1767810638711,-151.0,0.0001512,2]
[400746688,1767810638719,-151.0,0.0001512,2]
[400746690,1767810638728,-151.0,0.0001512,2]
[400746692,1767810638738,-500.0,0.0001512,2]
[400746694,1767810638752,-503.51722906,0.00015128,2]
[400746696,1767810638761,-200.0,0.00015129,2]
[400746698,1767810638771,-1000.0,0.00015129,2]
[400746700,1767810638781,-163.12609512,0.00015129,2]
[400746702,1767810638792,-150.0,0.00015183,2]
[400746704,1767810638802,-1000.0,0.000152,2]
[400746706,1767810638811,-500.0,0.00015228,2]
[400746708,1767810638821,-305.69773206,0.00015228,2]
[400746710,1767810638832,-466.29202792,0.00015228,2]
[400746712,1767810638841,-500.0,0.00015228,2]
[400746714,1767810638850,-500.0,0.00015228,2]
[400746716,1767810638859,-500.0,0.00015228,2]
[400746718,1767810638869,-239.81069419,0.00015228,2]
[400746720,1767810638879,-500.0,0.00015228,2]
[400746722,1767810638888,-500.0,0.00015228,2]
[400746724,1767810638897,-564.95924296,0.00015228,2]
[400746726,1767810638907,-500.0,0.00015228,2]
[400746728,1767810638916,-523.12649514,0.00015228,2]
[400746729,1767810638926,-1034.38,0.00015267,2]
[400746731,1767810638936,-150.99,0.00015267,2]
[400746733,1767810638946,-9999.99,0.00015267,2]
[400746735,1767810638956,-9999.99,0.00015267,2]
[400746737,1767810638966,-999.99,0.00015267,2]
[400746739,1767810638976,-37842.67,0.00015267,2]
[400746741,1767810638986,-200.0,0.0001527,2]
[400746743,1767810638995,-200.0,0.0001528,2]
[400746745,1767810639005,-2647.6,0.00015299,2]
[400746747,1767810639015,-1517.64,0.000153,2]
[400746749,1767810639025,-17971.76409481,0.00015348,2]
[400746751,1767810639035,-9357.35504013,0.00015348,2]
[400746753,1767810639045,-200.0,0.00015365,2]
[400746755,1767810639054,-615.06492354,0.00015366,2]
[400746757,1767810639063,-500.0,0.00015366,2]
[400746759,1767810639073,-500.0,0.00015366,2]
[400746761,1767810639082,-500.0,0.00015366,2]
[400746763,1767810639091,-500.0,0.00015366,2]
[400746765,1767810639099,-500.0,0.00015366,2]
[400746767,1767810639108,-500.0,0.00015366,2]
[400746769,1767810639118,-174.14927633,0.00015366,2]
[400746770,1767810639127,-1745.62,0.00015366,2]
[400746772,1767810639136,-500.0,0.00015366,2]
[400746774,1767810639145,-500.0,0.00015366,2]
[400746776,1767810639154,-500.0,0.00015366,2]
[400746778,1767810639163,-509.86932533,0.00015366,2]
[400746780,1767810639174,-500.0,0.00015366,2]
[400746782,1767810639183,-500.0,0.00015366,2]
[400746784,1767810639192,-529.68631152,0.00015366,2]
[400746786,1767810639202,-500.0,0.00015366,2]
[400746788,1767810639212,-500.0,0.00015366,2]
[400746791,1767810639222,-500.0,0.00015366,2]
[400746792,1767810639231,-500.0,0.00015366,2]
[400746795,1767810639241,-505.79783251,0.00015366,2]
[400746796,1767810639250,-500.0,0.00015366,2]
[400746798,1767810639259,-500.0,0.00015366,2]
[400746800,1767810639268,-500.0,0.00015366,2]
[400746802,1767810639278,-500.0,0.00015366,2]
[400746804,1767810639287,-544.93100005,0.00015366,2]
[400746806,1767810639296,-500.0,0.00015394,2]
[400746808,1767810639305,-200.0,0.00015423,2]
[400746810,1767810639315,-1118.95,0.00015456,2]
[400746812,1767810639325,-200.0,0.000155,2]
[400746814,1767810639334,-200.0,0.00015577,2]
[400746816,1767810639343,-151.0,0.00015608,2]
[400746818,1767810639353,-151.0,0.00015608,2]
[400746820,1767810639363,-59344.38916242,0.0001562,2]
[400746822,1767810639372,-321.82288534,0.00015621,2]
[400746824,1767810639382,-1000.0,0.00015621,2]
[400746826,1767810639391,-1000.0,0.00015621,2]
[400746828,1767810639400,-506.86059278,0.00015621,2]
[400746830,1767810639409,-652.22115376,0.00015621,2]
[400746831,1767810639418,-1000.0,0.00015621,2]
[400746833,1767810639428,-1000.0,0.00015621,2]
[400746835,1767810639437,-500.0,0.00015621,2]
[400746837,1767810639446,-1000.0,0.00015621,2]
[400746839,1767810639455,-509.86932533,0.00015621,2]
[400746841,1767810639464,-1000.0,0.00015621,2]
[400746843,1767810639473,-1000.0,0.00015621,2]
[400746845,1767810639482,-151.0,0.00015635,2]
[400746847,1767810639491,-151.0,0.00015635,2]
[400746849,1767810639501,-1745.62,0.0001564,2]
[400746851,1767810639510,-200.0,0.00015655,2]
[400746853,1767810639519,-17971.76409481,0.00015667,2]
[400746855,1767810639529,-9357.35504013,0.00015667,2]
[400746857,1767810639538,-500.0,0.00015668,2]
[400746859,1767810639547,-500.0,0.00015671,2]
[400746861,1767810639556,-500.0,0.00015671,2]
[400746863,1767810639565,-200.0,0.00015733,2]
[400746865,1767810639575,-1284.16362151,0.000158,2]
[400746867,1767810639584,-200.0,0.00015812,2]
[400746869,1767810639593,-20300.01999162,0.000159,2]
[400746871,1767810639602,-1745.62,0.00015914,2]
[400746873,1767810639611,-1000.0,0.00015918,2]
[400746875,1767810639620,-522.46913605,0.00015942,2]
[400746877,1767810639628,-509.09,0.00015953,2]
[400746879,1767810639637,-200.0,0.0001597,2]
[400746881,1767810639647,-17971.76409481,0.00015986,2]
[400746882,1767810639657,-9357.35504013,0.00015986,2]
[400746884,1767810639666,-1455.64956121,0.0001599,2]
[400746886,1767810639676,-151.0,0.00015997,2]
[400746888,1767810639685,-125503.01687635,0.00016,2]
[400746890,1767810639694,-62012.17182182,0.00016,4]
[400746892,1767810639703,-255.0,0.00016048,2]
[400746894,1767810639713,-9247.15,0.00016116,2]
[400746896,1767810639722,-200.0,0.00016129,2]
[400746898,1767810639731,-1284.1636215,0.0001615,2]
[400746900,1767810639740,-1500.0,0.00016168,2]
[400746902,1767810639750,-612.33615182,0.00016168,2]
[400746904,1767810639763,-1500.0,0.00016168,2]
[400746906,1767810639772,-1500.0,0.00016168,2]
[400746908,1767810639782,-832.92172037,0.00016168,2]
[400746910,1767810639791,-1500.0,0.00016168,2]
[400746912,1767810639802,-1000.0,0.00016168,2]
[400746914,1767810639812,-1745.62,0.00016188,2]
[400746916,1767810639821,-1118.95,0.00016192,2]
[400746918,1767810639832,-5000.00229228,0.000162,5]
[400746920,1767810639842,-4043.37774805,0.00016221,2]
[400746922,1767810639851,-857.95,0.00016222,2]
[400746924,1767810639860,-17971.76409481,0.00016305,2]
[400746926,1767810639869,-9357.35504013,0.00016305,2]
[400746928,1767810639879,-420.0,0.00016339,2]
[400746930,1767810639888,-300.0,0.00016339,2]
[400746932,1767810639898,-11907.36039927,0.00016397,2]
[400746934,1767810639907,-250.0,0.00016421,2]
[400746936,1767810639916,-250.0,0.00016422,2]
[400746938,1767810639926,-500.0,0.00016437,2]
[400746940,1767810639936,-274.431,0.00016437,2]
[400746942,1767810639945,-500.0,0.00016437,2]
[400746944,1767810639954,-1078.34686447,0.00016438,2]
[400746946,1767810639963,-1078.34686447,0.00016438,2]
[400746948,1767810639972,-1078.34686447,0.00016438,2]
[400746950,1767810639982,-1078.34686447,0.00016438,2]
[400746952,1767810639992,-1078.34686447,0.00016438,2]
[400746954,1767810640001,-1078.34686447,0.00016438,2]
[400746956,1767810640010,-1078.34686447,0.00016438,2]
[400746958,1767810640019,-1078.34686447,0.00016438,2]
[400746960,1767810640029,-1078.34686447,0.00016438,2]
[400746962,1767810640038,-1078.34686447,0.00016438,2]
[400746964,1767810640047,-1078.34686447,0.00016438,2]
[400746966,1767810640056,-1078.34686447,0.00016438,2]
[400746968,1767810640065,-1078.34686447,0.00016438,2]
[400746970,1767810640074,-1078.34686447,0.00016438,2]
[400746972,1767810640083,-1078.34686447,0.00016438,2]
[400746974,1767810640092,-1078.34686447,0.00016438,2]
[400746976,1767810640102,-1078.34686447,0.00016438,2]
[400746978,1767810640111,-1078.34686447,0.00016438,2]
[400746980,1767810640120,-1078.34686447,0.00016438,2]
[400746983,1767810640129,-1078.34686447,0.00016438,2]
[400746986,1767810640138,-1078.34686447,0.00016438,2]
[400746989,1767810640146,-1078.34686447,0.00016438,2]
[400746991,1767810640155,-1078.34686447,0.00016438,2]
[400746993,1767810640164,-1078.34686447,0.00016438,2]
[400746995,1767810640174,-1078.34686447,0.00016438,2]
[400746997,1767810640183,-1078.34686447,0.00016438,2]
[400746999,1767810640192,-1078.34686447,0.00016438,2]
[400747001,1767810640201,-1078.34686447,0.00016438,2]
[400747003,1767810640211,-1078.34686447,0.00016438,2]
[400747005,1767810640220,-1078.34686447,0.00016438,2]
[400747007,1767810640229,-1078.34686447,0.00016438,2]
[400747009,1767810640240,-1078.34686447,0.00016438,2]
[400747011,1767810640249,-1078.34686447,0.00016438,2]
[400747012,1767810640258,-1078.34686447,0.00016438,2]
[400747014,1767810640268,-1078.34686447,0.00016438,2]
[400747016,1767810640278,-1078.34686447,0.00016438,2]
[400747018,1767810640287,-1078.34686447,0.00016438,2]
[400747020,1767810640297,-1078.34686447,0.00016438,2]
[400747022,1767810640307,-1078.34686447,0.00016438,2]
[400747025,1767810640316,-1078.34686447,0.00016438,2]
[400747027,1767810640326,-1078.34686447,0.00016438,2]
[400747028,1767810640334,-1078.34686447,0.00016438,2]
[400747030,1767810640343,-1078.34686447,0.00016438,2]
[400747032,1767810640352,-1078.34686447,0.00016438,2]
[400747034,1767810640361,-1078.34686447,0.00016438,2]
[400747038,1767810640370,-1078.34686447,0.00016438,2]
[400747043,1767810640653,-1078.34686447,0.00016438,2]
[400747045,1767810640663,-1078.34686447,0.00016438,2]
[400747047,1767810640672,-1078.34686447,0.00016438,2]
[400747049,1767810640682,-1078.34686447,0.00016438,2]
[400747051,1767810640691,-1078.34686447,0.00016438,2]
[400747054,1767810640701,-1078.34686447,0.00016438,2]
[400747055,1767810640711,-1078.34686447,0.00016438,2]
[400747058,1767810640721,-1078.34686447,0.00016438,2]
[400747059,1767810640731,-1078.34686447,0.00016438,2]
[400747061,1767810640740,-1078.34686447,0.00016438,2]
[400747064,1767810640752,-1078.34686447,0.00016438,2]
[400747066,1767810640762,-1078.34686447,0.00016438,2]
[400747068,1767810640771,-1078.34686447,0.00016438,2]
[400747070,1767810640781,-1078.34686447,0.00016438,2]
[400747072,1767810640790,-1078.34686447,0.00016438,2]
[400747074,1767810640802,-1078.34686447,0.00016438,2]
[400747076,1767810640811,-1078.34686447,0.00016438,2]
[400747078,1767810640819,-1078.34686447,0.00016438,2]
[400747080,1767810640830,-1078.34686447,0.00016438,2]
[400747082,1767810640839,-1078.34686447,0.00016438,2]
[400747084,1767810640849,-2304.96642281,0.00016438,2]
[400747086,1767810640858,-2304.96642281,0.00016438,2]
[400747088,1767810640866,-2304.96642281,0.00016438,2]
[400747090,1767810640877,-2304.96642281,0.00016438,2]
[400747092,1767810640886,-2304.96642281,0.00016438,2]
[400747094,1767810640895,-2304.96642281,0.00016438,2]
[400747096,1767810640904,-2304.96642281,0.00016438,2]
[400747098,1767810640913,-2304.96642281,0.00016438,2]
[400747100,1767810640922,-2304.96642281,0.00016438,2]
[400747102,1767810640931,-2304.96642281,0.00016438,2]
[400747104,1767810640940,-2304.96642281,0.00016438,2]
[400747106,1767810640949,-2304.96642281,0.00016438,2]
[400747108,1767810640958,-2304.96642281,0.00016438,2]
[400747110,1767810640967,-2304.96642281,0.00016438,2]
[400747112,1767810640976,-2304.96642281,0.00016438,2]
[400747114,1767810640985,-2304.96642281,0.00016438,2]
[400747116,1767810640994,-2304.96642281,0.00016438,2]
[400747118,1767810641003,-2304.96642281,0.00016438,2]
[400747119,1767810641012,-2304.96642281,0.00016438,2]
[400747121,1767810641020,-2304.96642281,0.00016438,2]
[400747123,1767810641029,-2304.96642281,0.00016438,2]
[400747125,1767810641040,-2304.96642281,0.00016438,2]
[400747127,1767810641049,-2304.96642281,0.00016438,2]
[400747129,1767810641058,-2304.96642281,0.00016438,2]
[400747131,1767810641067,-2304.96642281,0.00016438,2]
[400747133,1767810641076,-800.0,0.00016438,2]
[400747135,1767810641085,-17702.97,0.00016438,2]
[400747137,1767810641094,-165.16,0.0001644,2]
[400747139,1767810641103,-1745.62,0.00016462,2]
[400747141,1767810641112,-1284.1636215,0.000165,2]
[400747143,1767810641121,-1000.0,0.00016515,2]
[400747145,1767810641130,-1000.0,0.00016523,2]
[400747147,1767810641139,-788.64,0.00016557,2]
[400747149,1767810641148,-1067.09662673,0.00016593,2]
[400747151,1767810641156,-214.69776175,0.00016599,2]
[400747153,1767810641166,-639.05245982,0.00016609,2]
[400747155,1767810641175,-2500.0,0.00016609,2]
[400747157,1767810641184,-250.0,0.00016609,2]
[400747159,1767810641193,-5000.0,0.00016609,2]
[400747161,1767810641203,-300.0,0.00016609,2]
[400747163,1767810641213,-300.0,0.00016609,2]
[400747165,1767810641225,-600.0,0.00016609,2]
[400747166,1767810641236,-600.0,0.00016609,2]
[400747168,1767810641245,-179.29,0.00016609,2]
[400747169,1767810641254,-2500.0,0.0001661,2]
[400747170,1767810641263,-195.0,0.0001661,2]
[400747171,1767810641273,-152.10889041,0.0001661,2]
[400747172,1767810641283,-193.0,0.0001661,2]
[400747173,1767810641292,-17971.76409481,0.00016624,2]
[400747174,1767810641302,-9357.35504013,0.00016624,2]
[400747175,1767810641311,-182.6941269,0.00016643,2]
[400747176,1767810641320,-500.0,0.00016643,2]
[400747177,1767810641330,-507.8387061,0.00016643,2]
[400747178,1767810641339,-322.49416926,0.00016643,2]
[400747179,1767810641348,-500.0,0.00016643,2]
[400747180,1767810641357,-360.78764565,0.00016643,2]
[400747181,1767810641367,-500.0,0.00016643,2]
[400747182,1767810641375,-500.0,0.00016643,2]
[400747183,1767810641385,-628.50709886,0.00016643,2]
[400747184,1767810641394,-500.0,0.00016643,2]
[400747185,1767810641403,-500.0,0.00016643,2]
[400747186,1767810641412,-500.0,0.00016643,2]
[400747187,1767810641422,-500.0,0.00016643,2]
[400747188,1767810641432,-578.87202896,0.00016643,2]
[400747189,1767810641441,-378.44615396,0.00016643,2]
[400747191,1767810641450,-150.0,0.00016653,2]
[400747193,1767810641459,-500.0,0.00016685,2]
[400747195,1767810641468,-500.0,0.00016685,2]
[400747197,1767810641477,-2000.0,0.00016716,2]
[400747199,1767810641486,-2000.0,0.00016716,2]
[400747200,1767810641497,-2000.0,0.00016716,2]
[400747201,1767810641506,-2000.0,0.00016716,2]
[400747202,1767810641515,-1745.62,0.00016736,2]
[400747203,1767810641524,-21610.8428454,0.00016741,2]
[400747204,1767810641534,-9372.1019578,0.00016741,2]
[400747205,1767810641543,-500.0,0.00016756,2]
[400747206,1767810641553,-400.58303632,0.00016756,2]
[400747207,1767810641563,-578.20924308,0.00016763,2]
[400747208,1767810641573,-620.0,0.00016763,2]
[400747209,1767810641582,-500.0,0.00016763,2]
[400747210,1767810641592,-1500.0,0.00016763,2]
[400747211,1767810641601,-448.72451731,0.00016763,2]
[400747212,1767810641611,-500.0,0.00016763,2]
[400747213,1767810641621,-500.0,0.00016763,2]
[400747214,1767810641631,-1500.0,0.00016763,2]
[400747215,1767810641640,-500.0,0.00016763,2]
[400747216,1767810641650,-500.0,0.00016763,2]
[400747217,1767810641659,-1500.0,0.00016763,2]
[400747218,1767810641668,-500.0,0.00016763,2]
[400747219,1767810641680,-500.0,0.00016763,2]
[400747220,1767810641690,-1500.0,0.00016763,2]
[400747221,1767810641700,-500.0,0.00016763,2]
[400747222,1767810641710,-500.0,0.00016763,2]
[400747223,1767810641719,-1500.0,0.00016763,2]
[400747224,1767810641729,-500.0,0.00016763,2]
[400747225,1767810641739,-1500.0,0.00016763,2]
[400747226,1767810641749,-500.0,0.00016763,2]
[400747227,1767810641764,-1500.0,0.00016763,2]
[400747228,1767810641774,-500.0,0.00016763,2]
[400747229,1767810641785,-1500.0,0.00016763,2]
[400747230,1767810641796,-500.0,0.00016763,2]
[400747231,1767810641806,-1500.0,0.00016763,2]
[400747232,1767810641816,-574.12855637,0.00016763,2]
[400747233,1767810641825,-500.0,0.00016763,2]
[400747234,1767810641837,-1500.0,0.00016763,2]
[400747235,1767810641847,-250.0,0.00016763,2]
[400747236,1767810641856,-500.0,0.00016763,2]
[400747237,1767810641866,-1500.0,0.00016763,2]
[400747238,1767810641875,-250.0,0.00016763,2]
[400747239,1767810641884,-500.0,0.00016763,2]
[400747240,1767810641893,-500.0,0.00016763,2]
[400747241,1767810641903,-500.0,0.00016763,2]
[400747242,1767810641913,-500.0,0.00016763,2]
[400747243,1767810641922,-200.0,0.00016763,2]
[400747244,1767810641932,-500.0,0.00016763,2]
[400747245,1767810641942,-207.4,0.00016763,2]
[400747246,1767810641951,-500.0,0.00016763,2]
[400747247,1767810641961,-215.0738,0.00016763,2]
[400747248,1767810641971,-500.0,0.00016763,2]
[400747249,1767810641980,-500.0,0.00016763,2]
[400747250,1767810641989,-2000.0,0.00016763,2]
[400747251,1767810641999,-223.0315306,0.00016763,2]
[400747252,1767810642009,-2000.0,0.00016763,2]
[400747253,1767810642018,-231.28369723,0.00016763,2]
[400747254,1767810642028,-500.0,0.00016763,2]
[400747255,1767810642037,-2000.0,0.00016763,2]
[400747256,1767810642046,-239.84119403,0.00016763,2]
[400747257,1767810642056,-500.0,0.00016763,2]
[400747258,1767810642065,-2000.0,0.00016763,2]
[400747259,1767810642075,-248.71531821,0.00016763,2]
[400747260,1767810642085,-500.0,0.00016763,2]
[400747261,1767810642094,-2000.0,0.00016763,2]
[400747262,1767810642104,-257.91778498,0.00016763,2]
[400747263,1767810642113,-500.0,0.00016763,2]
[400747264,1767810642122,-2000.0,0.00016763,2]
[400747265,1767810642132,-267.46074303,0.00016763,2]
[400747266,1767810642143,-500.0,0.00016763,2]
[400747267,1767810642153,-2000.0,0.00016763,2]
[400747268,1767810642162,-277.35679052,0.00016763,2]
[400747269,1767810642172,-500.0,0.00016763,2]
[400747270,1767810642181,-2000.0,0.00016763,2]
[400747271,1767810642191,-500.0,0.00016763,2]
[400747272,1767810642201,-2000.0,0.00016763,2]
[400747273,1767810642211,-500.0,0.00016763,2]
[400747274,1767810642220,-2000.0,0.00016763,2]
[400747275,1767810642230,-500.0,0.00016763,2]
[400747276,1767810642240,-2000.0,0.00016763,2]
[400747277,1767810642250,-500.0,0.00016763,2]
[400747278,1767810642260,-151.55763012,0.00016763,2]
[400747279,1767810642269,-322.6107,0.00016763,2]
[400747280,1767810642279,-1284.1636215,0.0001685,2]
[400747282,1767810642289,-1118.95,0.00016928,2]
[400747284,1767810642299,-1929.0,0.00016941,2]
[400747285,1767810642309,-17971.76409481,0.00016943,2]
[400747286,1767810642319,-9357.35504013,0.00016943,2]
[400747287,1767810642328,-300.0,0.00016973,2]
[400747288,1767810642338,-10930.75,0.00016977,2]
[400747289,1767810642347,-300.0,0.00016983,2]
[400747290,1767810642357,-1929.0,0.00016997,2]
[400747292,1767810642366,-500.001539,0.00017,2]
[400747293,1767810642375,-179.52010608,0.00017,2]
[400747294,1767810642385,-1745.62,0.0001701,2]
[400747296,1767810642395,-500.0,0.00017014,2]
[400747297,1767810642405,-300.0,0.00017021,2]
[400747300,1767810642415,-300.0,0.00017026,2]
[400747301,1767810642425,-505.0,0.00017041,2]
[400747302,1767810642434,-300.0,0.00017047,2]
[400747303,1767810642444,-300.0,0.00017059,2]
[400747304,1767810642453,-300.0,0.00017064,2]
[400747305,1767810642463,-300.0,0.00017077,2]
[400747306,1767810642473,-10000.0,0.00017091,2]
[400747307,1767810642482,-300.0,0.00017093,2]
[400747308,1767810642492,-300.0,0.00017095,2]
[400747309,1767810642502,-300.0,0.000171,2]
[400747310,1767810642512,-872.0,0.000171,2]
[400747311,1767810642522,-210.07522356,0.000171,2]
[400747312,1767810642533,-500.0,0.000171,2]
[400747313,1767810642543,-150.0,0.000171,2]
[400747314,1767810642553,-500.0,0.000171,2]
[400747315,1767810642562,-150.0,0.000171,2]
[400747316,1767810642572,-206.3800823,0.000171,2]
[400747317,1767810642581,-500.0,0.000171,2]
[400747318,1767810642591,-500.0,0.000171,2]
[400747319,1767810642600,-150.0,0.000171,2]
[400747320,1767810642610,-500.0,0.000171,2]
[400747321,1767810642620,-500.0,0.000171,2]